Service area,Service sub division,TVBC Service,Expense type,Detailed expense type,TVBC account code,Date Paid,Transaction Reference, Nett Value ,Supplier Name
Cultural & Related,Open Spaces,Community and Leisure ,Premises related Expenditure,Repairs Alterations & Maintenance of Buildings,Estates premises costs - AMP,11/04/2024,507722,-54244.53,Gristwood & Toms Ltd
Cultural & Related,Open Spaces,Community and Leisure ,Premises related Expenditure,Grounds Maintenance Costs,Non Contract Tree Works,11/04/2024,509572,-30998.72,Gristwood & Toms Ltd
External Trading Accounts,Economic Development,Premises & Asset Management,Premises related Expenditure,Cleaning and domestic supplies,Contract Cleaning - Non Estates,29/04/2024,512897,-12496.92,Kingdom Cleaning Limited
Central Services to the Public,Management & Support Services,Finance,Supplies & Services,Services,Insurance ,25/04/2024,512351,-5369.3,Gallagher
External Trading Accounts,Economic Development,Premises & Asset Management,Premises related Expenditure,Cleaning and domestic supplies,Contract Cleaning - Non Estates,25/04/2024,511874,-1927.25,Kingdom Cleaning Limited
External Trading Accounts,Business Parks,Premises & Asset Management,Supplies & Services,"Equipment, Furniture & Materials",Purchase Equip + Materials,04/04/2024,508789,-1309.07,Cjs Portsmouth Ltd
Cultural & Related,Recreation & Sport,Community and Leisure ,Premises related Expenditure,Energy Costs,Electricity,18/04/2024,509371,-645.55,Npower
Environmental & Regulatory,Waste management,Environmental,Transport Related Expenditure,Direct Transport Costs,Repair Materials,11/04/2024,510857,-600,Adams Morey Ltd
Cultural & Related,Recreation & Sport,Community and Leisure ,Premises related Expenditure,Energy Costs,Electricity,25/04/2024,512289,-503.81,Npower
Cultural & Related,Culture & Heritage,Community and Leisure ,Supplies & Services,Miscellaneous Expenses,Booking Of Acts,25/04/2024,511673,500,Personal Data - Data Protection Act 1998
Cultural & Related,Tourism,Planning Policy & Economic Development ,Premises related Expenditure,Repairs Alterations & Maintenance of Buildings,Planned Maintenance - Non Est,25/04/2024,511359,418.25,Pattco
Cultural & Related,Tourism,Planning Policy & Economic Development ,Premises related Expenditure,Repairs Alterations & Maintenance of Buildings,Planned Maintenance - Non Est,25/04/2024,511360,418.25,Pattco
Cultural & Related,Culture & Heritage,Premises & Asset Management,Premises related Expenditure,Repairs Alterations & Maintenance of Buildings,Planned Maintenance - Non Est,25/04/2024,511337,418.25,Pattco
Cultural & Related,Culture & Heritage,Premises & Asset Management,Premises related Expenditure,Repairs Alterations & Maintenance of Buildings,Planned Maintenance - Non Est,25/04/2024,511358,418.25,Pattco
Cultural & Related,Recreation & Sport,Community and Leisure ,Premises related Expenditure,Energy Costs,Gas,11/04/2024,511309,478.13,British Gas Business 
Central Services to the Public,Management & Support Services,Environmental,Supplies & Services,Catering,Catering,18/04/2024,511725,420,Yum Yum Uk Limited
Central Services to the Public,Management & Support Services,Legal & Democratic,Supplies & Services,Miscellaneous Expenses,Medical Fees,25/04/2024,512499,17,Cordell Health Ltd
Central Services to the Public,Management & Support Services,Finance,Supplies & Services,Miscellaneous Expenses,Medical Fees,25/04/2024,512499,220,Cordell Health Ltd
Environmental & Regulatory,Regulatory Services,Housing and Environmental Health ,Supplies & Services,Miscellaneous Expenses,Medical Fees,25/04/2024,512499,17,Cordell Health Ltd
Planning & Development,Development Control,Planning & Building,Supplies & Services,Miscellaneous Expenses,Medical Fees,25/04/2024,512499,34,Cordell Health Ltd
Central Services to the Public,Management & Support Services,Chief Executive's,Supplies & Services,Miscellaneous Expenses,Medical Fees,25/04/2024,512499,100,Cordell Health Ltd
"Highways, Roads & Transport",Parking Services,Plan Pol & Transport,Supplies & Services,Miscellaneous Expenses,Medical Fees,25/04/2024,512499,100,Cordell Health Ltd
Environmental & Regulatory,Street Cleansing (not chargeable to Highways),Environmental,Supplies & Services,Miscellaneous Expenses,Medical Fees,25/04/2024,512499,17,Cordell Health Ltd
Environmental & Regulatory,Waste management,Environmental,Transport Related Expenditure,Direct Transport Costs,Repair Materials,25/04/2024,511932,423.15,Dennis Eagle Ltd
Central Services to the Public,Management & Support Services,Environmental,Transport Related Expenditure,Direct Transport Costs,Repair Materials,25/04/2024,511865,435,Ppk Services Ltd
Cultural & Related,Culture & Heritage,Community and Leisure ,Supplies & Services,Miscellaneous Expenses,Booking Of Acts,25/04/2024,512356,525,Creative Workshops For Children Uk
Environmental & Regulatory,Regulatory Services,Housing and Environmental Health ,Supplies & Services,Grants and subscriptions,Capital Grants,04/04/2024,510848,528.44,Lifestyle Solutions
Cultural & Related,Recreation & Sport,Community and Leisure ,Premises related Expenditure,Water Services,Water And Sewerage Charges,25/04/2024,511262,535.67,Castle Water Limited
Central Services to the Public,Management & Support Services,Legal & Democratic,Employees,Indirect Employee Expenses,Agency Staff - Waged Posts,11/04/2024,511106,450,Sellick Partnership Ltd
Central Services to the Public,Management & Support Services,Premises & Asset Management,Premises related Expenditure,Repairs Alterations & Maintenance of Buildings,Building Maint - Non Estates,11/04/2024,511313,450,Basingstoke Fire Protection Ltd
Environmental & Regulatory,Street Cleansing (not chargeable to Highways),Environmental,Supplies & Services,Services,Training Courses,18/04/2024,507222,540,Sparsholt College Hampshire
Central Services to the Public,Management & Support Services,Premises & Asset Management,Supplies & Services,"Equipment, Furniture & Materials",Purchase Materials (Job Cost),25/04/2024,512238,453.93,City Electrical Factors Ltd
Central Services to the Public,Management & Support Services,IT,Supplies & Services,Communications & Computing,Communication Links,11/04/2024,511271,455,Cloud Gateway Limited
Cultural & Related,Tourism,Planning Policy & Economic Development ,Supplies & Services,"Printing, Stationery & General Office Expenses",External Printing,11/04/2024,510921,547,Bulpitt Print Ltd
Central Services to the Public,Management & Support Services,Premises & Asset Management,Third Party Payments,Other Establishments,Private Contractors,04/04/2024,510752,458.42,Corrigenda Ltd
Planning & Development,Building Control,Planning & Building,Transport Related Expenditure,Contract Hire and Operating Leases,Officer lease cars,11/04/2024,511254,552.29,Arval Uk Ltd
Central Services to the Public,Management & Support Services,Premises & Asset Management,Third Party Payments,Other Establishments,Private Contractors,25/04/2024,512233,465.35,Andover Glass Works Ltd
Central Services to the Public,Management & Support Services,Premises & Asset Management,Third Party Payments,Other Establishments,Private Contractors,04/04/2024,510795,562.5,Personal Data - Data Protection Act 1998
Cultural & Related,Culture & Heritage,Premises & Asset Management,Premises related Expenditure,Repairs Alterations & Maintenance of Buildings,Building Maint - Estates,04/04/2024,510826,145,Aat (Gb) Ltd
Cultural & Related,Culture & Heritage,Premises & Asset Management,Premises related Expenditure,Repairs Alterations & Maintenance of Buildings,Planned Maintenance - Non Est,04/04/2024,510826,325,Aat (Gb) Ltd
Central Services to the Public,Management & Support Services,HR Services,Supplies & Services,Services,Training Courses,25/04/2024,512525,471.75,Klc Employment Law Consultants Llp
Cultural & Related,Recreation & Sport,Community and Leisure ,Premises related Expenditure,Water Services,Water And Sewerage Charges,18/04/2024,511040,568.94,Castle Water Limited
Central Services to the Public,Management & Support Services,Environmental,Transport Related Expenditure,Direct Transport Costs,Repair Materials,11/04/2024,511233,475,Ppk Services Ltd
External Trading Accounts,Business Parks,Premises & Asset Management,Premises related Expenditure,Repairs Alterations & Maintenance of Buildings,Planned Maintenance - Non Est,25/04/2024,510071,480,Green Zone Surveys Uk Ltd
Central Services to the Public,Management & Support Services,Community and Leisure ,Supplies & Services,Grants & Subscriptions,Subscriptions,25/04/2024,511622,480,Chief Cultural & Leisure Officers Association
Cultural & Related,Recreation & Sport,Community and Leisure ,Premises related Expenditure,Grounds Maintenance Costs,Gm - Additional Works,25/04/2024,512498,480,Personal Data - Data Protection Act 1998
Cultural & Related,Recreation & Sport,Community and Leisure ,Premises related Expenditure,Grounds Maintenance Costs,Gm - Additional Works,25/04/2024,511320,486,Natural Stone & Timber 
Environmental & Regulatory,Waste & Recycling Management,Environmental,Supplies & Services,Miscellaneous Expenses,Recycling Campaign,11/04/2024,510916,495,Vernham Labels Ltd
Cultural & Related,Culture & Heritage,Premises & Asset Management,Premises related Expenditure,Energy Costs,Electricity,25/04/2024,512274,495.16,Npower
Cultural & Related,Open Spaces,Environmental,Transport Related Expenditure,Direct Transport Costs,Repair Materials,11/04/2024,510877,499.1,Hunt Forest Group Ltd
Cultural & Related,Culture & Heritage,Community and Leisure ,Employees,Indirect Employee Expenses,Temporary Staff,25/04/2024,512245,600,Personal Data - Data Protection Act 1998
Planning & Development,Economic Development,Planning Policy & Economic Development ,Supplies & Services,Grants & Subscriptions,Grants,04/04/2024,510853,600,Notjust Andover Cic
Central Services to the Public,Management & Support Services,Premises & Asset Management,Premises related Expenditure,Repairs Alterations & Maintenance of Buildings,Planned Maintenance - Non Est,25/04/2024,512520,503.85,Cp Fire Consultants Ltd
Cultural & Related,Culture & Heritage,Community and Leisure ,Premises related Expenditure,Repairs Alterations & Maintenance of Buildings,Planned Maintenance - Non Est,18/04/2024,511929,503.85,Cp Fire Consultants Ltd
Cultural & Related,Tourism,Planning Policy & Economic Development ,Supplies & Services,"Printing, Stationery & General Office Expenses",External Printing,04/04/2024,510760,504,Bulpitt Print Ltd
Central Services to the Public,Management & Support Services,Environmental,Transport Related Expenditure,Direct Transport Costs,Repair Materials,25/04/2024,511914,511.15,Dennis Eagle Ltd
Planning & Development,Building Control,Planning & Building,Supplies & Services,Grants & Subscriptions,Subscriptions,25/04/2024,511102,520,Labc Co. Uk
Planning & Development,Development Control,Planning & Building,Supplies & Services,Services,Project Consultancy - Policy,25/04/2024,509681,523,Hampshire County Council
Cultural & Related,Open Spaces,Community and Leisure ,Premises related Expenditure,Energy Costs,Electricity,25/04/2024,512263,530.95,Npower
Cultural & Related,Open Spaces,Environmental,Supplies & Services,Miscellaneous Expenses,Waste Collection,04/04/2024,510250,540.67,Veolia Es Hampshire Ltd
"Highways, Roads & Transport",Highways and roads - maintenance,Plan Pol & Transport,Premises related Expenditure,Energy Costs,Electricity,25/04/2024,512267,547.26,Npower
Cultural & Related,Open Spaces,Environmental,Supplies & Services,Communications & Computing,Mobile Telephone Charges,11/04/2024,510772,357.69,O2 Uk Ltd
Environmental & Regulatory,Street Cleansing (not chargeable to Highways),Environmental,Supplies & Services,Communications & Computing,Mobile Telephone Charges,11/04/2024,510772,182.94,O2 Uk Ltd
Environmental & Regulatory,Waste management,Environmental,Supplies & Services,Communications & Computing,Mobile Telephone Charges,11/04/2024,510772,6.7,O2 Uk Ltd
Central Services to the Public,Management & Support Services,Premises & Asset Management,Supplies & Services,"Printing, Stationery & General Office Expenses",Stationery,11/04/2024,510816,152.43,Lyreco Uk Ltd
Cultural & Related,Culture & Heritage,Premises & Asset Management,Supplies & Services,Catering,Non-Contract Catering,11/04/2024,510816,165.15,Lyreco Uk Ltd
Central Services to the Public,Management & Support Services,Premises & Asset Management,Supplies & Services,"Printing, Stationery & General Office Expenses",Stationery,11/04/2024,510816,73.17,Lyreco Uk Ltd
"Highways, Roads & Transport",Highways and roads - maintenance,Plan Pol & Transport,Supplies & Services,"Printing, Stationery & General Office Expenses",Stationery,11/04/2024,510816,174,Lyreco Uk Ltd
Central Services to the Public,Management & Support Services,Premises & Asset Management,Supplies & Services,"Equipment, Furniture & Materials",Purchase Materials (Job Cost),18/04/2024,511693,549.7,Howdens Joinery Co
Cultural & Related,Open Spaces,Community and Leisure ,Premises related Expenditure,Grounds Maintenance Costs,Non Contract Tree Works,04/04/2024,510797,550,Rocon Contractors Ltd
Cultural & Related,Open Spaces,Environmental,Transport Related Expenditure,Direct Transport Costs,Repair Materials,25/04/2024,511905,137.5,Adams Morey Ltd
Cultural & Related,Open Spaces,Environmental,Supplies & Services,"Equipment, Furniture & Materials",Purchase Equip + Materials,25/04/2024,512322,550,Southern Groundcare Ltd (Sgc)
Environmental & Regulatory,Waste & Recycling Management,Environmental,Transport Related Expenditure,Direct Transport Costs,Repair Materials,25/04/2024,511905,137.5,Adams Morey Ltd
Environmental & Regulatory,Street Cleansing (not chargeable to Highways),Environmental,Transport Related Expenditure,Direct Transport Costs,Repair Materials,25/04/2024,511905,137.5,Adams Morey Ltd
Environmental & Regulatory,Waste management,Environmental,Transport Related Expenditure,Direct Transport Costs,Repair Materials,25/04/2024,511905,137.5,Adams Morey Ltd
Environmental & Regulatory,Regulatory Services,Premises & Asset Management,Premises related Expenditure,Energy Costs,Electricity,18/04/2024,511886,550.9,Npower
Planning & Development,Community Development,Community and Leisure ,Supplies & Services,Grants & Subscriptions,Grants,11/04/2024,511299,666,Saxonfields Community Association
Cultural & Related,Recreation & Sport,Community and Leisure ,Premises related Expenditure,Energy Costs,Electricity,11/04/2024,511308,557.04,British Gas Business 
Environmental & Regulatory,Waste management,Environmental,Transport Related Expenditure,Direct Transport Costs,Repair Materials,25/04/2024,511913,560.77,Dennis Eagle Ltd
Cultural & Related,Open Spaces,Environmental,Supplies & Services,"Equipment, Furniture & Materials",Purchase Equip + Materials,25/04/2024,510927,565.56,Tudor Environmental
Central Services to the Public,Management & Support Services,Environmental,Supplies & Services,"Clothes, Uniforms & Laundry",Clothing + Uniforms,11/04/2024,510914,567,Evolve Corporate Ltd
Central Services to the Public,Management & Support Services,Premises & Asset Management,Third Party Payments,Other Establishments,Private Contractors,04/04/2024,510789,575,Gibson & Co Ceilings
Central Services to the Public,Management & Support Services,Chief Executive's,Employees,Indirect Employee Expenses,Advertising Of Vacancies,25/04/2024,512208,575,Guardian News & Media Ltd
Environmental & Regulatory,Waste management,Environmental,Transport Related Expenditure,Direct Transport Costs,Repair Materials,25/04/2024,511288,576.45,Adams Morey Ltd
Central Services to the Public,Management & Support Services,Finance,Supplies & Services,Grants & Subscriptions,Subscriptions,18/04/2024,511893,693,Cipfa
Central Services to the Public,Local Tax Collection,Revenues,Supplies & Services,"Printing, Stationery & General Office Expenses",External Printing,11/04/2024,511087,596.86,Latcham Direct Ltd
Environmental & Regulatory,Waste management,Environmental,Employees,Indirect Employee Expenses,Agency Staff - Waged Posts,04/04/2024,510363,599.33,24-7 Staffing
Environmental & Regulatory,Waste management,Environmental,Transport Related Expenditure,Direct Transport Costs,Repair Materials,11/04/2024,510860,600,Adams Morey Ltd
Cultural & Related,Culture & Heritage,Premises & Asset Management,Premises related Expenditure,Repairs Alterations & Maintenance of Buildings,Planned Maintenance - Non Est,04/04/2024,510805,604.2,Bpc Energy Ltd
Cultural & Related,Recreation & Sport,Community and Leisure ,Premises related Expenditure,Energy Costs,Electricity,25/04/2024,512262,599.54,Npower
Environmental & Regulatory,Waste management,Environmental,Employees,Indirect Employee Expenses,Agency Staff - Waged Posts,25/04/2024,512223,607.54,24-7 Staffing
Environmental & Regulatory,Regulatory Services,Premises & Asset Management,Premises related Expenditure,Water Services,Water And Sewerage Charges,11/04/2024,511264,733.38,Castle Water Limited
Central Services to the Public,Management & Support Services,Premises & Asset Management,Premises related Expenditure,Repairs Alterations & Maintenance of Buildings,Planned Maintenance - Non Est,18/04/2024,511362,20.4,Corrigenda Ltd
Central Services to the Public,Management & Support Services,Premises & Asset Management,Premises related Expenditure,Repairs Alterations & Maintenance of Buildings,Planned Maintenance - Non Est,18/04/2024,511363,20.4,Corrigenda Ltd
Central Services to the Public,Management & Support Services,Premises & Asset Management,Premises related Expenditure,Repairs Alterations & Maintenance of Buildings,Planned Maintenance - Non Est,18/04/2024,511364,20.4,Corrigenda Ltd
Central Services to the Public,Management & Support Services,Premises & Asset Management,Premises related Expenditure,Repairs Alterations & Maintenance of Buildings,Planned Maintenance - Non Est,18/04/2024,511365,20.4,Corrigenda Ltd
Central Services to the Public,Management & Support Services,Premises & Asset Management,Premises related Expenditure,Repairs Alterations & Maintenance of Buildings,Planned Maintenance - Non Est,18/04/2024,511362,2.39,Corrigenda Ltd
Central Services to the Public,Management & Support Services,Premises & Asset Management,Premises related Expenditure,Repairs Alterations & Maintenance of Buildings,Planned Maintenance - Non Est,18/04/2024,511363,2.39,Corrigenda Ltd
Central Services to the Public,Management & Support Services,Premises & Asset Management,Premises related Expenditure,Repairs Alterations & Maintenance of Buildings,Planned Maintenance - Non Est,18/04/2024,511364,2.39,Corrigenda Ltd
Central Services to the Public,Management & Support Services,Premises & Asset Management,Premises related Expenditure,Repairs Alterations & Maintenance of Buildings,Planned Maintenance - Non Est,18/04/2024,511365,2.39,Corrigenda Ltd
Central Services to the Public,Management & Support Services,Premises & Asset Management,Premises related Expenditure,Repairs Alterations & Maintenance of Buildings,Planned Maintenance - Non Est,18/04/2024,511362,4.78,Corrigenda Ltd
Central Services to the Public,Management & Support Services,Premises & Asset Management,Premises related Expenditure,Repairs Alterations & Maintenance of Buildings,Planned Maintenance - Non Est,18/04/2024,511363,4.78,Corrigenda Ltd
Central Services to the Public,Management & Support Services,Premises & Asset Management,Premises related Expenditure,Repairs Alterations & Maintenance of Buildings,Planned Maintenance - Non Est,18/04/2024,511364,4.78,Corrigenda Ltd
Central Services to the Public,Management & Support Services,Premises & Asset Management,Premises related Expenditure,Repairs Alterations & Maintenance of Buildings,Planned Maintenance - Non Est,18/04/2024,511365,4.78,Corrigenda Ltd
Cultural & Related,Recreation & Sport,Community and Leisure ,Premises related Expenditure,Repairs Alterations & Maintenance of Buildings,Planned Maintenance - Non Est,18/04/2024,511362,42.02,Corrigenda Ltd
Cultural & Related,Recreation & Sport,Community and Leisure ,Premises related Expenditure,Repairs Alterations & Maintenance of Buildings,Planned Maintenance - Non Est,18/04/2024,511363,42.02,Corrigenda Ltd
Cultural & Related,Recreation & Sport,Community and Leisure ,Premises related Expenditure,Repairs Alterations & Maintenance of Buildings,Planned Maintenance - Non Est,18/04/2024,511364,42.02,Corrigenda Ltd
Cultural & Related,Recreation & Sport,Community and Leisure ,Premises related Expenditure,Repairs Alterations & Maintenance of Buildings,Planned Maintenance - Non Est,18/04/2024,511365,42.02,Corrigenda Ltd
Cultural & Related,Recreation & Sport,Community and Leisure ,Premises related Expenditure,Repairs Alterations & Maintenance of Buildings,Planned Maintenance - Non Est,18/04/2024,511362,104.49,Corrigenda Ltd
Cultural & Related,Recreation & Sport,Community and Leisure ,Premises related Expenditure,Repairs Alterations & Maintenance of Buildings,Planned Maintenance - Non Est,18/04/2024,511363,104.49,Corrigenda Ltd
Cultural & Related,Recreation & Sport,Community and Leisure ,Premises related Expenditure,Repairs Alterations & Maintenance of Buildings,Planned Maintenance - Non Est,18/04/2024,511364,104.49,Corrigenda Ltd
Cultural & Related,Recreation & Sport,Community and Leisure ,Premises related Expenditure,Repairs Alterations & Maintenance of Buildings,Planned Maintenance - Non Est,18/04/2024,511365,104.49,Corrigenda Ltd
Cultural & Related,Recreation & Sport,Community and Leisure ,Premises related Expenditure,Repairs Alterations & Maintenance of Buildings,Planned Maintenance - Non Est,18/04/2024,511362,42.02,Corrigenda Ltd
Cultural & Related,Recreation & Sport,Community and Leisure ,Premises related Expenditure,Repairs Alterations & Maintenance of Buildings,Planned Maintenance - Non Est,18/04/2024,511363,42.02,Corrigenda Ltd
Cultural & Related,Recreation & Sport,Community and Leisure ,Premises related Expenditure,Repairs Alterations & Maintenance of Buildings,Planned Maintenance - Non Est,18/04/2024,511364,42.02,Corrigenda Ltd
Cultural & Related,Recreation & Sport,Community and Leisure ,Premises related Expenditure,Repairs Alterations & Maintenance of Buildings,Planned Maintenance - Non Est,18/04/2024,511365,43.24,Corrigenda Ltd
Cultural & Related,Recreation & Sport,Community and Leisure ,Premises related Expenditure,Repairs Alterations & Maintenance of Buildings,Planned Maintenance - Non Est,18/04/2024,511362,67.25,Corrigenda Ltd
Cultural & Related,Recreation & Sport,Community and Leisure ,Premises related Expenditure,Repairs Alterations & Maintenance of Buildings,Planned Maintenance - Non Est,18/04/2024,511363,67.25,Corrigenda Ltd
Cultural & Related,Recreation & Sport,Community and Leisure ,Premises related Expenditure,Repairs Alterations & Maintenance of Buildings,Planned Maintenance - Non Est,18/04/2024,511364,67.25,Corrigenda Ltd
Cultural & Related,Recreation & Sport,Community and Leisure ,Premises related Expenditure,Repairs Alterations & Maintenance of Buildings,Planned Maintenance - Non Est,18/04/2024,511365,67.25,Corrigenda Ltd
Cultural & Related,Recreation & Sport,Community and Leisure ,Premises related Expenditure,Repairs Alterations & Maintenance of Buildings,Planned Maintenance - Non Est,18/04/2024,511362,27.62,Corrigenda Ltd
Cultural & Related,Recreation & Sport,Community and Leisure ,Premises related Expenditure,Repairs Alterations & Maintenance of Buildings,Planned Maintenance - Non Est,18/04/2024,511363,27.62,Corrigenda Ltd
Cultural & Related,Recreation & Sport,Community and Leisure ,Premises related Expenditure,Repairs Alterations & Maintenance of Buildings,Planned Maintenance - Non Est,18/04/2024,511364,27.62,Corrigenda Ltd
Cultural & Related,Recreation & Sport,Community and Leisure ,Premises related Expenditure,Repairs Alterations & Maintenance of Buildings,Planned Maintenance - Non Est,18/04/2024,511365,27.62,Corrigenda Ltd
Cultural & Related,Recreation & Sport,Community and Leisure ,Premises related Expenditure,Repairs Alterations & Maintenance of Buildings,Planned Maintenance - Non Est,18/04/2024,511362,170.57,Corrigenda Ltd
Cultural & Related,Recreation & Sport,Community and Leisure ,Premises related Expenditure,Repairs Alterations & Maintenance of Buildings,Planned Maintenance - Non Est,18/04/2024,511363,170.57,Corrigenda Ltd
Cultural & Related,Recreation & Sport,Community and Leisure ,Premises related Expenditure,Repairs Alterations & Maintenance of Buildings,Planned Maintenance - Non Est,18/04/2024,511364,170.57,Corrigenda Ltd
Cultural & Related,Recreation & Sport,Community and Leisure ,Premises related Expenditure,Repairs Alterations & Maintenance of Buildings,Planned Maintenance - Non Est,18/04/2024,511365,169.35,Corrigenda Ltd
Cultural & Related,Recreation & Sport,Community and Leisure ,Premises related Expenditure,Repairs Alterations & Maintenance of Buildings,Planned Maintenance - Non Est,18/04/2024,511362,129.72,Corrigenda Ltd
Cultural & Related,Recreation & Sport,Community and Leisure ,Premises related Expenditure,Repairs Alterations & Maintenance of Buildings,Planned Maintenance - Non Est,18/04/2024,511363,129.72,Corrigenda Ltd
Cultural & Related,Recreation & Sport,Community and Leisure ,Premises related Expenditure,Repairs Alterations & Maintenance of Buildings,Planned Maintenance - Non Est,18/04/2024,511364,130.94,Corrigenda Ltd
Cultural & Related,Recreation & Sport,Community and Leisure ,Premises related Expenditure,Repairs Alterations & Maintenance of Buildings,Planned Maintenance - Non Est,18/04/2024,511365,129.72,Corrigenda Ltd
Cultural & Related,Culture & Heritage,Community and Leisure ,Premises related Expenditure,Repairs Alterations & Maintenance of Buildings,Planned Maintenance - Non Est,18/04/2024,511362,1.22,Corrigenda Ltd
Cultural & Related,Culture & Heritage,Community and Leisure ,Premises related Expenditure,Repairs Alterations & Maintenance of Buildings,Planned Maintenance - Non Est,18/04/2024,511363,1.22,Corrigenda Ltd
Cultural & Related,Culture & Heritage,Community and Leisure ,Premises related Expenditure,Repairs Alterations & Maintenance of Buildings,Planned Maintenance - Non Est,18/04/2024,511365,1.22,Corrigenda Ltd
Central Services to the Public,Management & Support Services,Premises & Asset Management,Third Party Payments,Other Establishments,Private Contractors,11/04/2024,511295,737.5,Personal Data - Data Protection Act 1998
Planning & Development,Community Development,Community and Leisure ,Supplies & Services,Grants & Subscriptions,Grants,18/04/2024,511949,740,Life Education Wessex
Central Services to the Public,Management & Support Services,IT,Supplies & Services,Grants & Subscriptions,Subscriptions,11/04/2024,510086,621,South East Employers
Planning & Development,Community Development,Community and Leisure ,Supplies & Services,Grants & Subscriptions,Grants,25/04/2024,512533,750,Knightwood Tennis Club
Environmental & Regulatory,Waste management,Environmental,Employees,Indirect Employee Expenses,Agency Staff - Waged Posts,04/04/2024,510357,630.9,Drive Personnel
Cultural & Related,Recreation & Sport,Community and Leisure ,Premises related Expenditure,Repairs Alterations & Maintenance of Buildings,Estates premises costs - AMP,11/04/2024,511293,800,Personal Data - Data Protection Act 1998
"Highways, Roads & Transport",Highways and roads - maintenance,Plan Pol & Transport,Premises related Expenditure,Repairs Alterations & Maintenance of Buildings,Highways Repairs,25/04/2024,511121,667,Bulpitt Print Ltd
Environmental & Regulatory,Waste management,Environmental,Employees,Indirect Employee Expenses,Agency Staff - Waged Posts,25/04/2024,512220,537.5,Aligra
Environmental & Regulatory,Waste management,Environmental,Employees,Indirect Employee Expenses,Agency Staff - Waged Posts,25/04/2024,512220,141,Aligra
Cultural & Related,Open Spaces,Community and Leisure ,Premises related Expenditure,Repairs Alterations & Maintenance of Buildings,Estates premises costs - AMP,25/04/2024,510278,681.8,Hillier Nurseries Limited
Housing Services,Homelessness,Housing and Environmental Health ,Supplies & Services,Grants & Subscriptions,Grants,25/04/2024,512529,818.84,Aster Group
Housing Services,Homelessness,Housing and Environmental Health ,Supplies & Services,Services,Project Consultancy - Policy,25/04/2024,512335,820,Chartered Institute Of Housing
Central Services to the Public,Management & Support Services,Legal & Democratic,Supplies & Services,"Printing, Stationery & General Office Expenses",Photocopying Costs,18/04/2024,511267,502.97,Ricoh Uk Ltd
Central Services to the Public,Elections,Legal & Democratic,Supplies & Services,"Printing, Stationery & General Office Expenses",Photocopying Costs,18/04/2024,511267,129.9,Ricoh Uk Ltd
Environmental & Regulatory,Regulatory Services,Legal & Democratic,Supplies & Services,"Printing, Stationery & General Office Expenses",Photocopying Costs,18/04/2024,511267,53.76,Ricoh Uk Ltd
"Highways, Roads & Transport",Public Transport,Plan Pol & Transport,Third Party Payments,Transport Operators in Respect of Concessionary Fares,Voluntary Orgs Reimbursement,18/04/2024,511951,829.8,Romsey Good Neighbours
Planning & Development,Development Control,Planning & Building,Employees,Indirect Employee Expenses,Temporary Staff,11/04/2024,510841,692.8,Hayden'S Arboricultural Consultants
Planning & Development,Development Control,Planning & Building,Employees,Indirect Employee Expenses,Temporary Staff,25/04/2024,512213,692.8,Hayden'S Arboricultural Consultants
Central Services to the Public,Management & Support Services,Premises & Asset Management,Third Party Payments,Other Establishments,Private Contractors,18/04/2024,511889,837.5,Personal Data - Data Protection Act 1998
Environmental & Regulatory,Waste management,Environmental,Employees,Indirect Employee Expenses,Agency Staff - Waged Posts,18/04/2024,511357,703.96,24-7 Staffing
Environmental & Regulatory,Waste management,Environmental,Employees,Indirect Employee Expenses,Agency Staff - Waged Posts,11/04/2024,510926,716.1,Aligra
Central Services to the Public,Management & Support Services,Premises & Asset Management,Third Party Payments,Other Establishments,Private Contractors,04/04/2024,510750,718.03,Corrigenda Ltd
Environmental & Regulatory,"Cemetery, Cremation and Mortuary Services",Community and Leisure ,Premises related Expenditure,Grounds Maintenance Costs,Gm - Additional Works,11/04/2024,510898,720,Evergreen Rabbit Control
Cultural & Related,Culture & Heritage,Premises & Asset Management,Supplies & Services,Miscellaneous Expenses,Waste Collection,18/04/2024,511687,205.15,Suez Recycling And Recovery Uk Ltd
Central Services to the Public,Management & Support Services,Premises & Asset Management,Supplies & Services,Miscellaneous Expenses,Waste Collection,18/04/2024,511687,517.08,Suez Recycling And Recovery Uk Ltd
Central Services to the Public,Management & Support Services,Premises & Asset Management,Third Party Payments,Other Establishments,Contract Catering,18/04/2024,511669,723.15,Edwards And Ward Ltd
"Highways, Roads & Transport",Parking Services,Plan Pol & Transport,Premises related Expenditure,Repairs Alterations & Maintenance of Buildings,Car Park General Repairs,18/04/2024,511857,875,Althon Limited
Environmental & Regulatory,Waste management,Environmental,Employees,Indirect Employee Expenses,Agency Staff - Waged Posts,25/04/2024,511690,735.6,24-7 Staffing
Central Services to the Public,Management & Support Services,Premises & Asset Management,Premises related Expenditure,Energy Costs,Electricity,25/04/2024,512286,737.11,Npower
Central Services to the Public,Management & Support Services,Legal & Democratic,Supplies & Services,Services,Legal Fees,25/04/2024,511694,750,Cornerstone Barristers
Central Services to the Public,Management & Support Services,Premises & Asset Management,Supplies & Services,Services,Professional Fees,18/04/2024,511718,750,Jcp Engineers 
External Trading Accounts,Business Parks,Premises & Asset Management,Supplies & Services,Services,Professional Fees,11/04/2024,510261,750,Cbre
Planning & Development,Development Control,Planning & Building,Supplies & Services,Services,Legal Fees,18/04/2024,511667,750,Cornerstone Barristers
Central Services to the Public,Management & Support Services,HR Services,Supplies & Services,Services,External Training Consultants,25/04/2024,511104,750,Dc Commercial Solicitors
Central Services to the Public,Management & Support Services,Premises & Asset Management,Third Party Payments,Other Establishments,Private Contractors,11/04/2024,511292,900,Personal Data - Data Protection Act 1998
Environmental & Regulatory,Waste management,Environmental,Employees,Indirect Employee Expenses,Agency Staff - Waged Posts,18/04/2024,511618,752,Aligra
Cultural & Related,Culture & Heritage,Community and Leisure ,Supplies & Services,Miscellaneous Expenses,Booking Of Acts,18/04/2024,511318,912.5,We Are Wolf Pack Ltd
Central Services to the Public,Management & Support Services,Premises & Asset Management,Third Party Payments,Other Establishments,Private Contractors,25/04/2024,512491,912.5,Personal Data - Data Protection Act 1998
Central Services to the Public,Management & Support Services,Premises & Asset Management,Third Party Payments,Other Establishments,Private Contractors,18/04/2024,511696,765,Wilsons Joinery Ltd
Central Services to the Public,Management & Support Services,Premises & Asset Management,Supplies & Services,Communications & Computing,Telephone Tracking System,11/04/2024,510828,48,Teletrac Navman (Uk) Ltd
Environmental & Regulatory,Regulatory Services,Housing and Environmental Health ,Supplies & Services,Communications & Computing,Telephone Tracking System,11/04/2024,510828,6,Teletrac Navman (Uk) Ltd
Environmental & Regulatory,Regulatory Services,Housing and Environmental Health ,Supplies & Services,Communications & Computing,Telephone Tracking System,11/04/2024,510828,12,Teletrac Navman (Uk) Ltd
Cultural & Related,Open Spaces,Community and Leisure ,Supplies & Services,Communications & Computing,Telephone Tracking System,11/04/2024,510828,6,Teletrac Navman (Uk) Ltd
Cultural & Related,Open Spaces,Community and Leisure ,Supplies & Services,Communications & Computing,Telephone Tracking System,11/04/2024,510828,6,Teletrac Navman (Uk) Ltd
"Highways, Roads & Transport",Parking Services,Plan Pol & Transport,Supplies & Services,Communications & Computing,Telephone Tracking System,11/04/2024,510828,12,Teletrac Navman (Uk) Ltd
Cultural & Related,Open Spaces,Environmental,Supplies & Services,Communications & Computing,Telephone Tracking System,11/04/2024,510828,299.99,Teletrac Navman (Uk) Ltd
Environmental & Regulatory,Waste & Recycling Management,Environmental,Supplies & Services,Communications & Computing,Telephone Tracking System,11/04/2024,510828,36,Teletrac Navman (Uk) Ltd
Environmental & Regulatory,Street Cleansing (not chargeable to Highways),Environmental,Supplies & Services,Communications & Computing,Telephone Tracking System,11/04/2024,510828,174.7,Teletrac Navman (Uk) Ltd
Environmental & Regulatory,Waste management,Environmental,Supplies & Services,Communications & Computing,Telephone Tracking System,11/04/2024,510828,136.6,Teletrac Navman (Uk) Ltd
Environmental & Regulatory,Waste management,Environmental,Supplies & Services,Communications & Computing,Telephone Tracking System,11/04/2024,510828,12,Teletrac Navman (Uk) Ltd
Central Services to the Public,Management & Support Services,Environmental,Supplies & Services,Communications & Computing,Telephone Tracking System,11/04/2024,510828,18,Teletrac Navman (Uk) Ltd
Central Services to the Public,Management & Support Services,Premises & Asset Management,Third Party Payments,Other Establishments,Private Contractors,11/04/2024,511294,930,C A M Carpentry
Central Services to the Public,Management & Support Services,Premises & Asset Management,Third Party Payments,Other Establishments,Private Contractors,04/04/2024,510757,776.04,Axis Fire And Security Services Ltd
Central Services to the Public,Management & Support Services,Premises & Asset Management,Third Party Payments,Other Establishments,Private Contractors,04/04/2024,510794,945,C A M Carpentry
"Highways, Roads & Transport",Public Transport,Plan Pol & Transport,Third Party Payments,Transport Operators in Respect of Concessionary Fares,Voluntary Orgs Reimbursement,18/04/2024,511950,953.8,Romsey Good Neighbours
External Trading Accounts,Business Parks,Premises & Asset Management,Supplies & Services,Miscellaneous Expenses,Waste Collection,18/04/2024,511691,820.5,Basingstoke Skip Hire & Sthrn Waste Mgt Ltd
"Highways, Roads & Transport",Parking Services,Plan Pol & Transport,Supplies & Services,"Printing, Stationery & General Office Expenses",External Printing,25/04/2024,511867,822,Paperwork (Uk) Ltd
Environmental & Regulatory,Waste management,Environmental,Transport Related Expenditure,Direct Transport Costs,Repair Materials,25/04/2024,511861,823.6,Wessex Truck And Trailer Supplies Limited
Central Services to the Public,Management & Support Services,Premises & Asset Management,Supplies & Services,"Equipment, Furniture & Materials",Equipment Hire,25/04/2024,512463,825,Crown Water & Coffee
Planning & Development,Development Control,Planning & Building,Employees,Indirect Employee Expenses,Temporary Staff,04/04/2024,510408,825,Sarto Thomas Limited
Planning & Development,Development Control,Planning & Building,Employees,Indirect Employee Expenses,Temporary Staff,25/04/2024,512215,825,Sarto Thomas Limited
Planning & Development,Community Development,Community and Leisure ,Supplies & Services,Grants & Subscriptions,Grants,11/04/2024,511300,1000,Lockerley And East Tytherley Bell Ringers
Planning & Development,Community Development,Community and Leisure ,Supplies & Services,Grants & Subscriptions,Grants,18/04/2024,511946,1000,A-Fest Andover Cic
Planning & Development,Community Development,Community and Leisure ,Supplies & Services,Grants & Subscriptions,Grants,18/04/2024,511962,1000,Sevh Trust
Cultural & Related,Culture & Heritage,Community and Leisure ,Third Party Payments,Private contractors,Main Contractor Costs,18/04/2024,511902,1000,Personal Data - Data Protection Act 1998
Central Services,Corporate & Democratic Core,Corporate & Democratic,Supplies & Services,Grants & Subscriptions,Subscriptions,25/04/2024,511630,1000,Hampshire County Council
Central Services to the Public,Management & Support Services,Premises & Asset Management,Premises related Expenditure,Repairs Alterations & Maintenance of Buildings,Estates premises costs - AMP,18/04/2024,511890,400,Personal Data - Data Protection Act 1998
Cultural & Related,Recreation & Sport,Community and Leisure ,Premises related Expenditure,Repairs Alterations & Maintenance of Buildings,Estates premises costs - AMP,18/04/2024,511890,600,Personal Data - Data Protection Act 1998
Cultural & Related,Recreation & Sport,Community and Leisure ,Premises related Expenditure,Repairs Alterations & Maintenance of Buildings,Estates premises costs - AMP,25/04/2024,512492,1000,Personal Data - Data Protection Act 1998
Planning & Development,Community Development,Community and Leisure ,Supplies & Services,Grants & Subscriptions,Grants,04/04/2024,510851,1000,Romsey Chamber Music Festival
Planning & Development,Community Development,Community and Leisure ,Supplies & Services,Grants & Subscriptions,Grants,18/04/2024,511947,1000,The Hygiene Bank Romsey
Planning & Development,Community Development,Community and Leisure ,Supplies & Services,Grants & Subscriptions,Grants,18/04/2024,511963,1000,De Gardeners
Planning & Development,Community Development,Community and Leisure ,Supplies & Services,Grants & Subscriptions,Grants,18/04/2024,511964,1000,Abbey United Reformed Church Romsey
Cultural & Related,Culture & Heritage,Community and Leisure ,Supplies & Services,"Printing, Stationery & General Office Expenses",Licences / Affiliation Fees,18/04/2024,511326,836.7,Ppl Prs Ltd
Environmental & Regulatory,Waste management,Environmental,Employees,Indirect Employee Expenses,Agency Staff - Waged Posts,25/04/2024,512323,841.2,U Logistics Recruitment Limited
Central Services to the Public,Management & Support Services,HR Services,Supplies & Services,Services,External Training Consultants,04/04/2024,510315,850,Enham Trust
Cultural & Related,Open Spaces,Community and Leisure ,Premises related Expenditure,Repairs Alterations & Maintenance of Buildings,Estates premises costs - AMP,25/04/2024,504765,853,Hillier Nurseries Limited
Environmental & Regulatory,Street Cleansing (not chargeable to Highways),Environmental,Third Party Payments,Other Establishments,Private Contractors,04/04/2024,510359,855,Breeze Environmental Limited
Central Services to the Public,Management & Support Services,Finance,Supplies & Services,"Printing, Stationery & General Office Expenses",Postage Costs,18/04/2024,511265,857.12,Whistl
Central Services to the Public,Management & Support Services,IT,Supplies & Services,Communications & Computing,Land Line Telephone Charges,18/04/2024,511322,857.81,Gamma
Central Services to the Public,Local Tax Collection,Revenues,Supplies & Services,Grants & Subscriptions,Subscriptions,11/04/2024,511141,951.45,Tameside Mbc
Environmental & Regulatory,Regulatory Services,Legal & Democratic,Supplies & Services,Grants & Subscriptions,Subscriptions,25/04/2024,511284,860, Button & Co
Cultural & Related,Open Spaces,Environmental,Transport Related Expenditure,Direct Transport Costs,Repair Materials,11/04/2024,511270,878.59,T H White Ltd
External Trading Accounts,Property Investments,Premises & Asset Management,Third Party Payments,Other Establishments,Private Contractors,25/04/2024,512521,895,Clearwater 2010 Ltd
Central Services to the Public,Management & Support Services,Premises & Asset Management,Third Party Payments,Other Establishments,Private Contractors,18/04/2024,511891,1095,Personal Data - Data Protection Act 1998
Central Services to the Public,Management & Support Services,IT,Supplies & Services,Communications & Computing,Hardware Maintenance,18/04/2024,511624,913.5,Trustmarque Solutions Ltd
Environmental & Regulatory,Waste management,Environmental,Transport Related Expenditure,Direct Transport Costs,Repair Materials,11/04/2024,510868,927.35,Adams Morey Ltd
Cultural & Related,Culture & Heritage,Community and Leisure ,Supplies & Services,Communications & Computing,Computer Software,11/04/2024,510899,1116,Ticketsolve Ltd
Environmental & Regulatory,Waste management,Environmental,Supplies & Services,"Equipment, Furniture & Materials",Purchase Equip + Materials,11/04/2024,510813,934.4,Vernacare
Planning & Development,Development Control,Planning & Building,Supplies & Services,Services,Project Consultancy - Policy,25/04/2024,512502,935,Dixon Searle Partnership
Central Services to the Public,Management & Support Services,Premises & Asset Management,Premises related Expenditure,Repairs Alterations & Maintenance of Buildings,Planned Maintenance - Non Est,18/04/2024,511719,14.66,Corrigenda Ltd
Central Services to the Public,Management & Support Services,Premises & Asset Management,Premises related Expenditure,Repairs Alterations & Maintenance of Buildings,Planned Maintenance - Non Est,18/04/2024,511719,7.33,Corrigenda Ltd
Central Services to the Public,Management & Support Services,Premises & Asset Management,Premises related Expenditure,Repairs Alterations & Maintenance of Buildings,Planned Maintenance - Non Est,18/04/2024,511719,3.66,Corrigenda Ltd
Cultural & Related,Recreation & Sport,Community and Leisure ,Premises related Expenditure,Repairs Alterations & Maintenance of Buildings,Planned Maintenance - Non Est,18/04/2024,511719,51.42,Corrigenda Ltd
Cultural & Related,Recreation & Sport,Community and Leisure ,Premises related Expenditure,Repairs Alterations & Maintenance of Buildings,Planned Maintenance - Non Est,18/04/2024,511719,198.18,Corrigenda Ltd
Cultural & Related,Recreation & Sport,Community and Leisure ,Premises related Expenditure,Repairs Alterations & Maintenance of Buildings,Planned Maintenance - Non Est,18/04/2024,511719,66.06,Corrigenda Ltd
Cultural & Related,Recreation & Sport,Community and Leisure ,Premises related Expenditure,Repairs Alterations & Maintenance of Buildings,Planned Maintenance - Non Est,18/04/2024,511719,121.13,Corrigenda Ltd
Cultural & Related,Recreation & Sport,Community and Leisure ,Premises related Expenditure,Repairs Alterations & Maintenance of Buildings,Planned Maintenance - Non Est,18/04/2024,511719,33.08,Corrigenda Ltd
Cultural & Related,Recreation & Sport,Community and Leisure ,Premises related Expenditure,Repairs Alterations & Maintenance of Buildings,Planned Maintenance - Non Est,18/04/2024,511719,257,Corrigenda Ltd
Cultural & Related,Recreation & Sport,Community and Leisure ,Premises related Expenditure,Repairs Alterations & Maintenance of Buildings,Planned Maintenance - Non Est,18/04/2024,511719,183.52,Corrigenda Ltd
Cultural & Related,Culture & Heritage,Community and Leisure ,Premises related Expenditure,Repairs Alterations & Maintenance of Buildings,Planned Maintenance - Non Est,18/04/2024,511719,3.66,Corrigenda Ltd
Cultural & Related,Recreation & Sport,Community and Leisure ,Premises related Expenditure,Water Services,Water And Sewerage Charges,11/04/2024,511263,1132.23,Castle Water Limited
Environmental & Regulatory,Regulatory Services,Housing and Environmental Health ,Supplies & Services,Communications & Computing,Computer Software,25/04/2024,511225,947.21,Exampleit Ltd
"Highways, Roads & Transport",Parking Services,Plan Pol & Transport,Supplies & Services,Miscellaneous Expenses,Security Services,18/04/2024,511315,953.25,Venture Security Management Ltd
Central Services to the Public,Management & Support Services,Legal & Democratic,Employees,Indirect Employee Expenses,Agency Staff - Waged Posts,11/04/2024,511108,960,Sellick Partnership Ltd
Central Services to the Public,Management & Support Services,Legal & Democratic,Employees,Indirect Employee Expenses,Agency Staff - Waged Posts,18/04/2024,511671,960,Sellick Partnership Ltd
Planning & Development,Development Control,Planning & Building,Third Party Payments,Commuted Sum,s106 Developer contributions,11/04/2024,511305,1167.18,Braishfield Parish Council
Cultural & Related,Open Spaces,Community and Leisure ,Premises related Expenditure,Repairs Alterations & Maintenance of Buildings,Estates premises costs - AMP,25/04/2024,510279,974.6,Hillier Nurseries Limited
Central Services to the Public,Management & Support Services,Premises & Asset Management,Third Party Payments,Other Establishments,Contract Catering,18/04/2024,511701,977.4,Edwards And Ward Ltd
Cultural & Related,Culture & Heritage,Community and Leisure ,Third Party Payments,Private contractors,Main Contractor Costs,25/04/2024,512514,990,J P Lighting Design
Central Services to the Public,Management & Support Services,Legal & Democratic,Employees,Indirect Employee Expenses,Agency Staff - Waged Posts,11/04/2024,511109,990,Sellick Partnership Ltd
Central Services to the Public,Management & Support Services,Finance,Employees,Indirect Employee Expenses,Advertising Of Vacancies,25/04/2024,512324,999,Redactive Publishing Ltd
External Trading Accounts,Business Parks,Premises & Asset Management,Supplies & Services,Services,Professional Fees,11/04/2024,510256,1000,Lambert Smith Hampton
External Trading Accounts,Business Parks,Premises & Asset Management,Supplies & Services,Services,Professional Fees,11/04/2024,510257,1000,Lambert Smith Hampton
Central Services to the Public,Management & Support Services,Legal & Democratic,Supplies & Services,Services,Legal Fees,25/04/2024,511674,1000,Sharpe Pritchard Llp
Housing Services,Homelessness,Housing and Environmental Health ,Supplies & Services,Grants & Subscriptions,Grants,25/04/2024,512530,1209,Aster Group
Cultural & Related,Recreation & Sport,Community and Leisure ,Premises related Expenditure,Water Services,Water And Sewerage Charges,11/04/2024,511057,1216.91,Castle Water Limited
Planning & Development,Building Control,Planning & Building,Employees,Indirect Employee Expenses,Agency Staff - Waged Posts,25/04/2024,512216,1023.61,Hays Specialist Recruitment
Central Services to the Public,Management & Support Services,Legal & Democratic,Employees,Indirect Employee Expenses,Agency Staff - Waged Posts,25/04/2024,511915,1065,Sellick Partnership Ltd
Central Services to the Public,Management & Support Services,Premises & Asset Management,Third Party Payments,Other Establishments,Private Contractors,18/04/2024,511726,1066.5,Unique Fire And Security Ltd
Central Services to the Public,Local Tax Collection,Revenues,Supplies & Services,Services,Professional Fees,04/04/2024,510302,19.11,Ross & Roberts
Central Services,Corporate & Democratic Core,Corporate & Democratic,Supplies & Services,Miscellaneous Expenses,Design Fees,25/04/2024,512320,1073,Cammegh Davies Fleming
Central Services to the Public,Management & Support Services,Premises & Asset Management,Third Party Payments,Other Local Authorities,Shared Service Contract Costs,25/04/2024,512493,1315,Personal Data - Data Protection Act 1998
Environmental & Regulatory,Waste management,Environmental,Transport Related Expenditure,Direct Transport Costs,Repair Materials,25/04/2024,511353,427.7,Wasteparts Uk Ltd
Central Services to the Public,Management & Support Services,Environmental,Transport Related Expenditure,Direct Transport Costs,Repair Materials,25/04/2024,511353,680.86,Wasteparts Uk Ltd
External Trading Accounts,Property Investments,Premises & Asset Management,Supplies & Services,Services,Legal Fees,25/04/2024,512214,1117.31,Carter Jonas
Environmental & Regulatory,Waste management,Environmental,Transport Related Expenditure,Direct Transport Costs,External Garages,25/04/2024,511371,1137.54,Dennis Eagle Ltd
Planning & Development,Development Control,Planning & Building,Supplies & Services,Services,Project Consultancy - Policy,25/04/2024,512501,1150,Dixon Searle Partnership
Environmental & Regulatory,Waste management,Environmental,Transport Related Expenditure,Direct Transport Costs,Repair Materials,25/04/2024,511370,71.1,Wasteparts Uk Ltd
Central Services to the Public,Management & Support Services,Environmental,Transport Related Expenditure,Direct Transport Costs,Repair Materials,25/04/2024,511370,1100,Wasteparts Uk Ltd
"Highways, Roads & Transport",Parking Services,Plan Pol & Transport,Premises related Expenditure,Repairs Alterations & Maintenance of Buildings,Car Parks - Signs + Lines,11/04/2024,508813,1199,Coupe Line
Environmental & Regulatory,Waste management,Environmental,Transport Related Expenditure,Direct Transport Costs,External Garages,25/04/2024,511354,1200,Dashwitness Ltd
Environmental & Regulatory,Regulatory Services,Housing and Environmental Health ,Supplies & Services,Grants and subscriptions,Capital Grants,18/04/2024,511976,1444,Andover Glass Works Ltd
Housing Services,Homelessness,Housing and Environmental Health ,Supplies & Services,Grants & Subscriptions,Grants,25/04/2024,512531,1454,Personal Data - Data Protection Act 1998
Cultural & Related,Open Spaces,Community and Leisure ,Premises related Expenditure,Repairs Alterations & Maintenance of Buildings,Estates premises costs - AMP,25/04/2024,510277,1220.8,Hillier Nurseries Limited
Cultural & Related,Culture & Heritage,Community and Leisure ,Supplies & Services,Miscellaneous Expenses,Booking Of Acts,18/04/2024,511321,1485.63,Resolutions In Music
Central Services to the Public,Management & Support Services,Premises & Asset Management,Third Party Payments,Other Establishments,Private Contractors,04/04/2024,510856,1250,Protec Roofing Southern Ltd
Central Services to the Public,Management & Support Services,Premises & Asset Management,Third Party Payments,Other Establishments,Private Contractors,18/04/2024,511350,1268,Doorgear Limited
Planning & Development,Development Control,Planning & Building,Employees,Indirect Employee Expenses,Temporary Staff,18/04/2024,511899,1274.67,Ecological Planning & Research Ltd
Central Services to the Public,Management & Support Services,Premises & Asset Management,Premises related Expenditure,Energy Costs,Electricity,25/04/2024,512280,1284.85,Npower
Cultural & Related,Open Spaces,Community and Leisure ,Premises related Expenditure,Repairs Alterations & Maintenance of Buildings,Estates premises costs - AMP,25/04/2024,510283,1288,Hillier Nurseries Limited
External Trading Accounts,Business Parks,Premises & Asset Management,Supplies & Services,"Equipment, Furniture & Materials",Purchase Equip + Materials,04/04/2024,508788,1309.07,Cjs Portsmouth Ltd
Cultural & Related,Open Spaces,Community and Leisure ,Premises related Expenditure,Repairs Alterations & Maintenance of Buildings,Estates premises costs - AMP,25/04/2024,512240,1315,Personal Data - Data Protection Act 1998
Planning & Development,Building Control,Planning & Building,Employees,Indirect Employee Expenses,Agency Staff - Waged Posts,11/04/2024,510842,1319.02,Hays Specialist Recruitment
Central Services to the Public,Management & Support Services,Revenues,Supplies & Services,"Printing, Stationery & General Office Expenses",Postage Costs,11/04/2024,510903,1323.66,Whistl
Environmental & Regulatory,"Cemetery, Cremation and Mortuary Services",Community and Leisure ,Supplies & Services,Miscellaneous Expenses,National Assist Act Burials,17/04/2024,511332,1593,Dunnings Funeral Services
Cultural & Related,Open Spaces,Environmental,Transport Related Expenditure,Direct Transport Costs,Repair Materials,04/04/2024,510346,1333.89,Lister Wilder
"Highways, Roads & Transport",Parking Services,Plan Pol & Transport,Supplies & Services,Services,Professional Fees,18/04/2024,510817,1349.41,Advam (Uk) Limited
"Highways, Roads & Transport",Public Transport,Plan Pol & Transport,Third Party Payments,Transport Operators in Respect of Concessionary Fares,Voluntary Orgs Reimbursement,18/04/2024,511713,1628,Andover Neighbourcare
Planning & Development,Development Control,Planning & Building,Employees,Indirect Employee Expenses,Temporary Staff,25/04/2024,512212,1385.6,Hayden'S Arboricultural Consultants
Central Services to the Public,Local Tax Collection,Revenues,Supplies & Services,"Equipment, Furniture & Materials",Purchase Furniture,04/04/2024,510378,1385.9,Showcase Psr Ltd
Environmental & Regulatory,Waste management,Environmental,Employees,Indirect Employee Expenses,Agency Staff - Waged Posts,04/04/2024,510361,1167.19,24-7 Staffing
Environmental & Regulatory,Waste management,Environmental,Employees,Indirect Employee Expenses,Agency Staff - Waged Posts,04/04/2024,510361,262.72,24-7 Staffing
Planning & Development,Development Control,Planning & Building,Employees,Indirect Employee Expenses,Temporary Staff,04/04/2024,510409,1430,G2 Recruitment Solutions
Central Services to the Public,Management & Support Services,Environmental,Transport Related Expenditure,Direct Transport Costs,Repair Materials,25/04/2024,511367,1435.41,Dennis Eagle Ltd
Environmental & Regulatory,Street Cleansing (not chargeable to Highways),Environmental,Premises related Expenditure,Rents,Rents,25/04/2024,512355,1439.48,Aster Group
Central Services to the Public,Management & Support Services,Premises & Asset Management,Employees,Indirect Employee Expenses,Agency Staff - Waged Posts,11/04/2024,511235,1440,Matchtech Group Uk Ltd
Cultural & Related,Open Spaces,Community and Leisure ,Premises related Expenditure,Repairs Alterations & Maintenance of Buildings,Estates premises costs - AMP,25/04/2024,504147,1577.8,Hillier Nurseries Limited
Central Services to the Public,Local Tax Collection,Revenues,Supplies & Services,Miscellaneous Expenses,Other Miscellaneous Costs,25/04/2024,511319,1757.45,Andover Town Centre Bid Ltd
Central Services to the Public,Management & Support Services,Chief Executive's,Premises related Expenditure,Rents,Premises Hire,25/04/2024,511631,1114.67,Bournemouth Convention Bureau Ltd
Central Services,Corporate & Democratic Core,Corporate & Democratic,Premises related Expenditure,Rents,Premises Hire,25/04/2024,511631,352,Bournemouth Convention Bureau Ltd
Central Services to the Public,Management & Support Services,Premises & Asset Management,Supplies & Services,"Equipment, Furniture & Materials",Purchase Materials (Job Cost),11/04/2024,511291,1484.75,Onvo Modular Ltd
Cultural & Related,Recreation & Sport,Community and Leisure ,Premises related Expenditure,Repairs Alterations & Maintenance of Buildings,Estates premises costs - AMP,04/04/2024,510911,1485.71,Ava Recreation
Central Services to the Public,Management & Support Services,Finance,Supplies & Services,"Printing, Stationery & General Office Expenses",Postage Costs,11/04/2024,509560,1582.3,Whistl
Planning & Development,Development Control,Planning & Building,Employees,Indirect Employee Expenses,Temporary Staff,18/04/2024,511724,1602.1,Hayden'S Arboricultural Consultants
Central Services to the Public,Management & Support Services,Premises & Asset Management,Employees,Indirect Employee Expenses,Agency Staff - Waged Posts,11/04/2024,511127,1632,Matchtech Group Uk Ltd
Central Services to the Public,Management & Support Services,Premises & Asset Management,Premises related Expenditure,Repairs Alterations & Maintenance of Buildings,Planned Maintenance - Non Est,11/04/2024,511111,1640.76,Corrigenda Ltd
Planning & Development,Community Development,Community and Leisure ,Supplies & Services,Grants & Subscriptions,Grants,18/04/2024,511948,2000,Andover Community Engage
Environmental & Regulatory,Regulatory Services,Housing and Environmental Health ,Supplies & Services,Grants and subscriptions,Capital Grants,18/04/2024,511973,2000,Bjc Design (Southeast) Ltd
Cultural & Related,Regulatory Services,Community and Leisure ,Third Party Payments,Private contractors,Main Contractor Costs,04/04/2024,510854,2000,Monxton Parish Council
Cultural & Related,Recreation & Sport,Community and Leisure ,Premises related Expenditure,Repairs Alterations & Maintenance of Buildings,Planned Maintenance - Non Est,04/04/2024,510748,1687.59,Corrigenda Ltd
Central Services to the Public,Management & Support Services,Premises & Asset Management,Third Party Payments,Other Establishments,Private Contractors,04/04/2024,510759,1698.17,Axis Fire And Security Services Ltd
Cultural & Related,Open Spaces,Community and Leisure ,Premises related Expenditure,Grounds Maintenance Costs,Snagging Works,25/04/2024,512523,1700,Vesper Conservation & Ecology Ltd
Central Services,Corporate & Democratic Core,Corporate & Democratic,Supplies & Services,Services,Legal Fees,25/04/2024,511712,1750.9,Sharpe Pritchard Llp
Central Services to the Public,Management & Support Services,Premises & Asset Management,Third Party Payments,Other Establishments,Private Contractors,04/04/2024,510758,1747.03,Axis Fire And Security Services Ltd
Central Services to the Public,Management & Support Services,Environmental,Supplies & Services,Grants & Subscriptions,Subscriptions,04/04/2024,510804,1750,Freight Transport Association Ta Logistics Uk
Cultural & Related,Culture & Heritage,Community and Leisure ,Supplies & Services,Miscellaneous Expenses,Booking Of Acts,25/04/2024,512252,1752,Avalon Management Group Ltd
Cultural & Related,Open Spaces,Community and Leisure ,Premises related Expenditure,Repairs Alterations & Maintenance of Buildings,Estates premises costs - AMP,25/04/2024,506568,1972.6,Hillier Nurseries Limited
Cultural & Related,Open Spaces,Community and Leisure ,Premises related Expenditure,Repairs Alterations & Maintenance of Buildings,Estates premises costs - AMP,25/04/2024,510275,1785,Hillier Nurseries Limited
Planning & Development,Economic Development,Premises & Asset Management,Supplies & Services,"Equipment, Furniture & Materials",Purchase Equip + Materials,11/04/2024,511140,1807,Bulpitt Print Ltd
External Trading Accounts,Property Investments,Premises & Asset Management,Supplies & Services,Services,Professional Fees,11/04/2024,510260,1807.5,Cbre
Environmental & Regulatory,Street Cleansing (not chargeable to Highways),Environmental,Transport Related Expenditure,Direct Transport Costs,Tyres,25/04/2024,512227,377.9,Tructyre Ats
Environmental & Regulatory,Waste management,Environmental,Transport Related Expenditure,Direct Transport Costs,Tyres,25/04/2024,512227,1431.8,Tructyre Ats
Environmental & Regulatory,Community Development,Community and Leisure ,Supplies & Services,Grants & Subscriptions,Subscriptions,11/04/2024,511244,1850,Resolve (Asb)
Central Services to the Public,Management & Support Services,Premises & Asset Management,Premises related Expenditure,Energy Costs,Electricity,25/04/2024,512275,1879.91,Npower
"Highways, Roads & Transport",Parking Services,Plan Pol & Transport,Premises related Expenditure,Energy Costs,Electricity,25/04/2024,512255,1888.56,Npower
Central Services to the Public,Management & Support Services,Premises & Asset Management,Employees,Indirect Employee Expenses,Agency Staff - Waged Posts,11/04/2024,511092,1959,Property Partners Recruitment Ltd
Cultural & Related,Open Spaces,Community and Leisure ,Premises related Expenditure,Repairs Alterations & Maintenance of Buildings,Estates premises costs - AMP,25/04/2024,510274,2052.4,Hillier Nurseries Limited
Environmental & Regulatory,Waste management,Environmental,Employees,Indirect Employee Expenses,Agency Staff - Waged Posts,25/04/2024,512221,1557.47,Aligra
Environmental & Regulatory,Waste management,Environmental,Employees,Indirect Employee Expenses,Agency Staff - Waged Posts,25/04/2024,512221,444.93,Aligra
Planning & Development,Building Control,Planning & Building,Employees,Indirect Employee Expenses,Agency Staff - Waged Posts,18/04/2024,511311,2010.47,Hays Specialist Recruitment
Environmental & Regulatory,Regulatory Services,Housing and Environmental Health ,Supplies & Services,Grants and subscriptions,Capital Grants,25/04/2024,512534,2488.8,Quadrabuild Ltd
External Trading Accounts,Business Parks,Premises & Asset Management,Premises related Expenditure,Energy Costs,Electricity,25/04/2024,512260,2096.76,Npower
External Trading Accounts,Business Parks,Premises & Asset Management,Premises related Expenditure,Repairs Alterations & Maintenance of Buildings,Building Maint - Estates,18/04/2024,510790,2150,"Wt Industrial Roofing, Cladding & Maint Ltd"
Environmental & Regulatory,Regulatory Services,Housing and Environmental Health ,Supplies & Services,Miscellaneous Expenses,Kennel fees,11/04/2024,510889,2169.69,Three Oak Boarding Kennels
Environmental & Regulatory,Waste management,Environmental,Employees,Indirect Employee Expenses,Agency Staff - Waged Posts,18/04/2024,511620,1829.24,Aligra
Environmental & Regulatory,Waste management,Environmental,Employees,Indirect Employee Expenses,Agency Staff - Waged Posts,18/04/2024,511620,375.92,Aligra
Cultural & Related,Open Spaces,Community and Leisure ,Premises related Expenditure,Repairs Alterations & Maintenance of Buildings,Estates premises costs - AMP,25/04/2024,504146,2557.8,Hillier Nurseries Limited
Environmental & Regulatory,Waste management,Environmental,Employees,Indirect Employee Expenses,Agency Staff - Waged Posts,25/04/2024,512222,862.05,24-7 Staffing
Environmental & Regulatory,Waste management,Environmental,Employees,Indirect Employee Expenses,Agency Staff - Waged Posts,25/04/2024,512222,1419.43,24-7 Staffing
Environmental & Regulatory,Regulatory Services,Housing and Environmental Health ,Supplies & Services,Grants and subscriptions,Capital Grants,04/04/2024,510846,2758,Bentley Mobility Services
Central Services to the Public,Management & Support Services,Finance,Supplies & Services,Communications & Computing,Software Maintenance,18/04/2024,511374,2300.04,Eus Holdings Ltd
Planning & Development,Building Control,Planning & Building,Employees,Indirect Employee Expenses,Agency Staff - Waged Posts,04/04/2024,510304,2304.01,Hays Specialist Recruitment
Cultural & Related,Open Spaces,Community and Leisure ,Premises related Expenditure,Repairs Alterations & Maintenance of Buildings,Estates premises costs - AMP,25/04/2024,510276,2318.4,Hillier Nurseries Limited
Cultural & Related,Culture & Heritage,Community and Leisure ,Premises related Expenditure,Cleaning and domestic supplies,Cleaning Materials-Purchases,11/04/2024,511097,2324.53,Phs Group Plc
Central Services to the Public,Management & Support Services,IT,Supplies & Services,Communications & Computing,Hardware Maintenance,04/04/2024,510803,2335.69,Trustmarque Solutions Ltd
Central Services to the Public,Management & Support Services,Premises & Asset Management,Supplies & Services,"Equipment, Furniture & Materials",Purchase Materials (Job Cost),25/04/2024,512239,2366.1,City Electrical Factors Ltd
Central Services to the Public,Management & Support Services,IT,Supplies & Services,Communications & Computing,Communication Links,04/04/2024,510329,2146.6,Zen Internet Limited
Cultural & Related,Recreation & Sport,Community and Leisure ,Supplies & Services,Communications & Computing,Land Line Telephone Charges,04/04/2024,510329,103.5,Zen Internet Limited
Cultural & Related,Culture & Heritage,Community and Leisure ,Supplies & Services,Communications & Computing,Land Line Telephone Charges,04/04/2024,510329,35,Zen Internet Limited
"Highways, Roads & Transport",Parking Services,Plan Pol & Transport,Supplies & Services,Communications & Computing,Communication Links,04/04/2024,510329,41.98,Zen Internet Limited
"Highways, Roads & Transport",Parking Services,Plan Pol & Transport,Supplies & Services,Communications & Computing,Land Line Telephone Charges,04/04/2024,510329,60.16,Zen Internet Limited
Central Services to the Public,Management & Support Services,HR Services,Third Party Payments,Other Local Authorities,Shared Service Contract Costs,25/04/2024,511737,2396.16,Mhr International Uk Ltd
Planning & Development,Development Control,Planning & Building,Employees,Indirect Employee Expenses,Temporary Staff,11/04/2024,510792,2433.75,Sarto Thomas Limited
Central Services to the Public,Management & Support Services,Finance,Supplies & Services,"Printing, Stationery & General Office Expenses",Postage Costs,11/04/2024,510296,2433.98,Whistl
Environmental & Regulatory,Waste management,Environmental,Employees,Indirect Employee Expenses,Agency Staff - Waged Posts,18/04/2024,511356,1278.26,24-7 Staffing
Environmental & Regulatory,Waste management,Environmental,Employees,Indirect Employee Expenses,Agency Staff - Waged Posts,18/04/2024,511356,1160.59,24-7 Staffing
External Trading Accounts,Economic Development,Premises & Asset Management,Premises related Expenditure,Energy Costs,Electricity,25/04/2024,512272,2448.32,Npower
"Highways, Roads & Transport",Parking Services,Plan Pol & Transport,Supplies & Services,Communications & Computing,Computer Software,18/04/2024,511280,2451,Forty6 Ltd
"Highways, Roads & Transport",Parking Services,Plan Pol & Transport,Supplies & Services,Communications & Computing,Computer Software,18/04/2024,511281,2451,Forty6 Ltd
"Highways, Roads & Transport",Parking Services,Plan Pol & Transport,Supplies & Services,Communications & Computing,Computer Software,18/04/2024,511282,2451,Forty6 Ltd
"Highways, Roads & Transport",Parking Services,Plan Pol & Transport,Supplies & Services,Communications & Computing,Computer Software,18/04/2024,511283,2451,Forty6 Ltd
Environmental & Regulatory,Waste & Recycling Management,Environmental,Supplies & Services,"Equipment, Furniture & Materials",Purchase Equip + Materials,04/04/2024,510810,2456.85,Glasdon Uk Ltd
Central Services to the Public,Elections,Legal & Democratic,Supplies & Services,"Printing, Stationery & General Office Expenses",Postage Costs,18/04/2024,511247,2956.66,Financial Data Management Plc
Environmental & Regulatory,Waste & Recycling Management,Environmental,Supplies & Services,"Equipment, Furniture & Materials",Purchase Equip + Materials,18/04/2024,511355,2491,Jrb Enterpise Ltd
Central Services to the Public,Management & Support Services,Legal & Democratic,Supplies & Services,Services,Legal Fees,11/04/2024,511120,2500,Brittan Llp
Central Services to the Public,Management & Support Services,HR Services,Third Party Payments,Other Local Authorities,Shared Service Contract Costs,25/04/2024,511738,2550,Mhr International Uk Ltd
Central Services to the Public,Management & Support Services,Chief Executive's,Supplies & Services,Services,Conference Costs,04/04/2024,510074,2585,Local Government Association
Central Services to the Public,Management & Support Services,Premises & Asset Management,Employees,Indirect Employee Expenses,Agency Staff - Waged Posts,11/04/2024,511137,2600,Property Partners Recruitment Ltd
Central Services to the Public,Management & Support Services,Premises & Asset Management,Employees,Indirect Employee Expenses,Agency Staff - Waged Posts,18/04/2024,511703,2609.9,Property Partners Recruitment Ltd
Central Services to the Public,Management & Support Services,Premises & Asset Management,Third Party Payments,Other Establishments,Contract Catering,18/04/2024,511681,2673.25,Edwards And Ward Ltd
"Highways, Roads & Transport",Parking Services,Plan Pol & Transport,Supplies & Services,Services,Professional Fees,18/04/2024,511336,2690.17,Jade Security Services Ltd
Central Services to the Public,Management & Support Services,Premises & Asset Management,Third Party Payments,Other Establishments,Private Contractors,11/04/2024,511223,2740,"Wt Industrial Roofing, Cladding & Maint Ltd"
Central Services to the Public,Management & Support Services,Chief Executive's,Supplies & Services,Services,Conference Costs,04/04/2024,510075,1111.6,Local Government Association
Planning & Development,Planning Policy,Plan Pol & Transport,Supplies & Services,Services,Conference Costs,04/04/2024,510075,556.3,Local Government Association
Central Services,Corporate & Democratic Core,Corporate & Democratic,Supplies & Services,Services,Conference Costs,04/04/2024,510075,1111.6,Local Government Association
Environmental & Regulatory,Street Cleansing (not chargeable to Highways),Environmental,Transport Related Expenditure,Direct Transport Costs,Tyres,04/04/2024,510362,45.51,Tructyre Ats
Environmental & Regulatory,Waste management,Environmental,Transport Related Expenditure,Direct Transport Costs,Tyres,04/04/2024,510362,44.7,Tructyre Ats
Environmental & Regulatory,Waste management,Environmental,Transport Related Expenditure,Direct Transport Costs,Tyres,04/04/2024,510362,1399.76,Tructyre Ats
Central Services to the Public,Management & Support Services,Environmental,Transport Related Expenditure,Direct Transport Costs,Repair Materials,04/04/2024,510362,1330,Tructyre Ats
Cultural & Related,Culture & Heritage,Community and Leisure ,Supplies & Services,Miscellaneous Expenses,Booking Of Acts,25/04/2024,512333,3416.88,Personal Data - Data Protection Act 1998
Cultural & Related,Open Spaces,Community and Leisure ,Premises related Expenditure,Repairs Alterations & Maintenance of Buildings,Estates premises costs - AMP,11/04/2024,507720,2866.35,Gristwood & Toms Ltd
Cultural & Related,Open Spaces,Community and Leisure ,Premises related Expenditure,Repairs Alterations & Maintenance of Buildings,Estates premises costs - AMP,25/04/2024,510285,2889.6,Hillier Nurseries Limited
Cultural & Related,Recreation & Sport,Community and Leisure ,Premises related Expenditure,Energy Costs,Electricity,25/04/2024,512261,2897.9,Npower
Cultural & Related,Open Spaces,Environmental,Transport Related Expenditure,Direct Transport Costs,Tyres,25/04/2024,512229,28.75,Tructyre Ats
Environmental & Regulatory,Waste & Recycling Management,Environmental,Transport Related Expenditure,Direct Transport Costs,Tyres,25/04/2024,512229,28.75,Tructyre Ats
Environmental & Regulatory,Street Cleansing (not chargeable to Highways),Environmental,Transport Related Expenditure,Direct Transport Costs,Tyres,25/04/2024,512229,426.75,Tructyre Ats
Environmental & Regulatory,Waste management,Environmental,Transport Related Expenditure,Direct Transport Costs,Tyres,25/04/2024,512229,159.12,Tructyre Ats
Environmental & Regulatory,Waste management,Environmental,Transport Related Expenditure,Direct Transport Costs,Tyres,25/04/2024,512229,2254.85,Tructyre Ats
Environmental & Regulatory,Community Development,Community and Leisure ,Supplies & Services,Grants & Subscriptions,Grants,18/04/2024,510263,3500,King Arthurs Way Community Association
Central Services to the Public,Management & Support Services,Premises & Asset Management,Third Party Payments,Other Establishments,Private Contractors,11/04/2024,511125,2950.97,Corrigenda Ltd
External Trading Accounts,Business Parks,Premises & Asset Management,Supplies & Services,Services,Professional Fees,11/04/2024,511310,3097.5,Personal Data - Data Protection Act 1998
Cultural & Related,Open Spaces,Community and Leisure ,Premises related Expenditure,Repairs Alterations & Maintenance of Buildings,Estates premises costs - AMP,25/04/2024,510282,3138.8,Hillier Nurseries Limited
Central Services to the Public,Management & Support Services,IT,Supplies & Services,"Equipment, Furniture & Materials",IT Supp and Serv AMP,04/04/2024,510334,3180,Swcomms
Environmental & Regulatory,Waste management,Environmental,Employees,Indirect Employee Expenses,Agency Staff - Waged Posts,11/04/2024,506860,3201.75,24-7 Staffing
Central Services to the Public,Management & Support Services,IT,Supplies & Services,Communications & Computing,Hardware Maintenance,25/04/2024,511226,3216.48,Phoenix Software Ltd
Central Services to the Public,Management & Support Services,Legal & Democratic,Supplies & Services,"Printing, Stationery & General Office Expenses",Postage Costs,11/04/2024,511266,3233.51,Dx Network Services Limited
Central Services to the Public,Management & Support Services,Premises & Asset Management,Employees,Indirect Employee Expenses,Agency Staff - Waged Posts,11/04/2024,511091,3250,Property Partners Recruitment Ltd
Central Services to the Public,Management & Support Services,Premises & Asset Management,Employees,Indirect Employee Expenses,Agency Staff - Waged Posts,25/04/2024,512210,3250,Property Partners Recruitment Ltd
Central Services to the Public,Management & Support Services,Premises & Asset Management,Employees,Indirect Employee Expenses,Agency Staff - Waged Posts,11/04/2024,511090,3251.35,Property Partners Recruitment Ltd
Central Services to the Public,Management & Support Services,Premises & Asset Management,Employees,Indirect Employee Expenses,Agency Staff - Waged Posts,11/04/2024,511094,3261.25,Property Partners Recruitment Ltd
Environmental & Regulatory,Street Cleansing (not chargeable to Highways),Environmental,Third Party Payments,Other Establishments,Private Contractors,04/04/2024,510360,3346.5,Breeze Environmental Limited
Planning & Development,Planning Policy,Plan Pol & Transport,Supplies & Services,Services,Project Consultancy - Policy,25/04/2024,510894,4129.33,Havant Borough Council
Environmental & Regulatory,Regulatory Services,Housing and Environmental Health ,Supplies & Services,Grants and subscriptions,Capital Grants,11/04/2024,511349,4150,Ratcliffe Plumbing & Electrical Service
Central Services to the Public,Management & Support Services,Finance,Supplies & Services,"Printing, Stationery & General Office Expenses",Postage Costs,25/04/2024,512318,4174.26,Pitney Bowes Finance Ltd
Planning & Development,Planning Policy,Plan Pol & Transport,Supplies & Services,Services,Project Consultancy - Policy,25/04/2024,512336,4236.4,O'Shea Consulting & Amp Support
Planning & Development,Planning Policy,Plan Pol & Transport,Supplies & Services,Services,Project Consultancy - Policy,04/04/2024,510799,3720,Community Energy South
Environmental & Regulatory,Waste management,Environmental,Transport Related Expenditure,Direct Transport Costs,Repair Materials,11/04/2024,510867,3736.46,Adams Morey Ltd
Environmental & Regulatory,Regulatory Services,Housing and Environmental Health ,Supplies & Services,Grants and subscriptions,Capital Grants,25/04/2024,512535,4541,Bentley Mobility Services
"Highways, Roads & Transport",Parking Services,Plan Pol & Transport,Transport Related Costs,Management Fee,Car Park charges,18/04/2024,511124,3816.72,Park Now Limited
Cultural & Related,Culture & Heritage,Community and Leisure ,Premises related Expenditure,Energy Costs,Electricity,11/04/2024,510900,3616.78,Sparsholt College Hampshire
Cultural & Related,Culture & Heritage,Community and Leisure ,Premises related Expenditure,Water Services,Water And Sewerage Charges,11/04/2024,510900,254.34,Sparsholt College Hampshire
Central Services,Corporate & Democratic Core,Corporate & Democratic,Supplies & Services,Services,Legal Fees,18/04/2024,511277,3937.5,Brittan Llp
Planning & Development,Development Control,Planning & Building,Employees,Indirect Employee Expenses,Temporary Staff,18/04/2024,511900,3939.8,Ecological Planning & Research Ltd
Planning & Development,Development Control,Planning & Building,Supplies & Services,Communications & Computing,Software Maintenance,11/04/2024,511239,4000,Idox Software Ltd
External Trading Accounts,Economic Development,Premises & Asset Management,Supplies & Services,Miscellaneous Expenses,Waste Collection,18/04/2024,511734,4201.34,Grist Environmental
Central Services to the Public,Management & Support Services,Legal & Democratic,Employees,Indirect Employee Expenses,Agency Staff - Waged Posts,25/04/2024,511628,4489,Vivid Resourcing
Planning & Development,Economic Development,Planning Policy & Economic Development ,Supplies & Services,Services,Project Consultancy - Policy,04/04/2024,510838,4860,Absolar
Central Services,Corporate & Democratic Core,Corporate & Democratic,Supplies & Services,Services,Legal Fees,11/04/2024,510793,5100,Radcliffe Chambers
Central Services to the Public,Local Tax Collection,Revenues,Supplies & Services,"Printing, Stationery & General Office Expenses",External Printing,11/04/2024,511086,2631.29,Latcham Direct Ltd
Central Services to the Public,Local Tax Collection,Revenues,Supplies & Services,"Printing, Stationery & General Office Expenses",External Printing,11/04/2024,511086,2631.3,Latcham Direct Ltd
Environmental & Regulatory,Regulatory Services,Housing and Environmental Health ,Supplies & Services,Grants and subscriptions,Capital Grants,04/04/2024,510847,6407.28,Acer Renovations Ltd
Central Services to the Public,Local Land Charges,Legal & Democratic,Supplies & Services,Miscellaneous Expenses,Land Charges Fees,25/04/2024,511619,5828,Hampshire County Council
Environmental & Regulatory,Regulatory Services,Housing and Environmental Health ,Supplies & Services,Grants and subscriptions,Capital Grants,18/04/2024,511975,7323.34,Northfield Property Solutions Limited
Central Services to the Public,Management & Support Services,Premises & Asset Management,Third Party Payments,Other Establishments,Private Contractors,18/04/2024,511894,6410,"Wt Industrial Roofing, Cladding & Maint Ltd"
Cultural & Related,Open Spaces,Community and Leisure ,Premises related Expenditure,Grounds Maintenance Costs,Non Contract Tree Works,11/04/2024,510352,7137.2,Gristwood & Toms Ltd
External Trading Accounts,Economic Development,Premises & Asset Management,Premises related Expenditure,Cleaning and domestic supplies,Contract Cleaning - Non Estates,25/04/2024,511921,708.33,Hi-Spec Facilities Services Plc
External Trading Accounts,Business Parks,Premises & Asset Management,Premises related Expenditure,Cleaning and domestic supplies,Contract Cleaning - Non Estates,25/04/2024,511921,215.01,Hi-Spec Facilities Services Plc
Central Services to the Public,Management & Support Services,Premises & Asset Management,Premises related Expenditure,Cleaning and domestic supplies,Contract Cleaning - Non Estates,25/04/2024,511921,224.66,Hi-Spec Facilities Services Plc
Environmental & Regulatory,Regulatory Services,Premises & Asset Management,Premises related Expenditure,Cleaning and domestic supplies,Contract Cleaning - Non Estates,25/04/2024,511921,2006.75,Hi-Spec Facilities Services Plc
Cultural & Related,Recreation & Sport,Community and Leisure ,Premises related Expenditure,Cleaning and domestic supplies,Contract Cleaning - Non Estates,25/04/2024,511921,281.06,Hi-Spec Facilities Services Plc
Cultural & Related,Recreation & Sport,Community and Leisure ,Premises related Expenditure,Cleaning and domestic supplies,Contract Cleaning - Non Estates,25/04/2024,511921,752.53,Hi-Spec Facilities Services Plc
Cultural & Related,Recreation & Sport,Community and Leisure ,Premises related Expenditure,Cleaning and domestic supplies,Contract Cleaning - Non Estates,25/04/2024,511921,456.75,Hi-Spec Facilities Services Plc
Cultural & Related,Recreation & Sport,Community and Leisure ,Premises related Expenditure,Cleaning and domestic supplies,Contract Cleaning - Non Estates,25/04/2024,511921,456.75,Hi-Spec Facilities Services Plc
Cultural & Related,Recreation & Sport,Community and Leisure ,Premises related Expenditure,Cleaning and domestic supplies,Contract Cleaning - Non Estates,25/04/2024,511921,1291.5,Hi-Spec Facilities Services Plc
Environmental & Regulatory,"Cemetery, Cremation and Mortuary Services",Community and Leisure ,Premises related Expenditure,Cleaning and domestic supplies,Contract Cleaning - Non Estates,25/04/2024,511921,35.83,Hi-Spec Facilities Services Plc
Cultural & Related,Open Spaces,Community and Leisure ,Premises related Expenditure,Cleaning and domestic supplies,Contract Cleaning - Non Estates,25/04/2024,511921,752.53,Hi-Spec Facilities Services Plc
"Highways, Roads & Transport",Parking Services,Plan Pol & Transport,Premises related Expenditure,Cleaning and domestic supplies,Contract Cleaning - Non Estates,25/04/2024,511921,35.83,Hi-Spec Facilities Services Plc
Central Services to the Public,Management & Support Services,Legal & Democratic,Employees,Indirect Employee Expenses,Agency Staff - Waged Posts,25/04/2024,511632,7388.33,Vivid Resourcing
Central Services to the Public,Management & Support Services,Premises & Asset Management,Premises related Expenditure,Energy Costs,Electricity,25/04/2024,512258,8079.33,Npower
Cultural & Related,Open Spaces,Community and Leisure ,Premises related Expenditure,Grounds Maintenance Costs,Non Contract Tree Works,11/04/2024,511105,8127.83,Vesper Conservation & Ecology Ltd
Planning & Development,Planning Policy,Plan Pol & Transport,Employees,Indirect Employee Expenses,Temporary Staff,25/04/2024,511119,8815,Vivid Resourcing
Cultural & Related,Open Spaces,Environmental,Supplies & Services,"Equipment, Furniture & Materials",Purchase Equip + Materials,18/04/2024,510818,12671.6,Agrovista Uk Ltd
Cultural & Related,Recreation & Sport,Community and Leisure ,Supplies & Services,Grants and subscriptions,Capital Grants,11/04/2024,511297,13890.51,Over Wallop Parish Council
External Trading Accounts,Economic Development,Premises & Asset Management,Premises related Expenditure,Cleaning and domestic supplies,Contract Cleaning - Non Estates,25/04/2024,501365,12496.92,Kingdom Cleaning Limited
External Trading Accounts,Economic Development,Premises & Asset Management,Premises related Expenditure,Cleaning and domestic supplies,Contract Cleaning - Non Estates,25/04/2024,511868,12496.92,Kingdom Cleaning Limited
External Trading Accounts,Economic Development,Premises & Asset Management,Premises related Expenditure,Cleaning and domestic supplies,Contract Cleaning - Non Estates,25/04/2024,511870,12496.92,Kingdom Cleaning Limited
External Trading Accounts,Economic Development,Premises & Asset Management,Premises related Expenditure,Cleaning and domestic supplies,Contract Cleaning - Non Estates,25/04/2024,511880,12496.92,Kingdom Cleaning Limited
External Trading Accounts,Economic Development,Premises & Asset Management,Premises related Expenditure,Cleaning and domestic supplies,Contract Cleaning - Non Estates,29/04/2024,511869,12496.92,Kingdom Cleaning Limited
Environmental & Regulatory,Regulatory Services,Housing and Environmental Health ,Supplies & Services,Grants and subscriptions,Capital Grants,18/04/2024,511974,15226.05,Kemp Builders (Gosport) Ltd
Cultural & Related,Recreation & Sport,Community and Leisure ,Supplies & Services,Grants and subscriptions,Capital Grants,04/04/2024,510895,15653.9,The Boaz Project
Central Services to the Public,Management & Support Services,Premises & Asset Management,Premises related Expenditure,Repairs Alterations & Maintenance of Buildings,Estates premises costs - AMP,18/04/2024,511339,13500,Sonic Scaffolding 2000 Ltd
Cultural & Related,Open Spaces,Community and Leisure ,Premises related Expenditure,Grounds Maintenance Costs,Gm - Additional Works,11/04/2024,511290,13503,Wildflower Turf Ltd
Central Services to the Public,Management & Support Services,IT,Support Services,IT,IT Hardware costs,25/04/2024,512242,13764,Nuvola Distribution Ltd
External Trading Accounts,Business Parks,Premises & Asset Management,Supplies & Services,Services,Professional Fees,18/04/2024,511626,14000,Vail Williams Llp
Central Services to the Public,Management & Support Services,Environmental,Premises related Expenditure,Repairs Alterations & Maintenance of Buildings,General Repairs,18/04/2024,511672,14845,Purbeck Civil Engineering Limited
Central Services to the Public,Management & Support Services,IT,Supplies & Services,Communications & Computing,Computer Software,18/04/2024,511228,14950,Fortem Information Technology Ltd
Planning & Development,Development Control,Planning & Building,Third Party Payments,Commuted Sum,s106 Developer contributions,11/04/2024,511296,18252,Nursling And Rownhams Community Centre
Cultural & Related,Open Spaces,Community and Leisure ,Premises related Expenditure,Repairs Alterations & Maintenance of Buildings,Estates premises costs - AMP,25/04/2024,504771,15526,Hillier Nurseries Limited
Central Services to the Public,Management & Support Services,Finance,Supplies & Services,Services,Insurance ,25/04/2024,512348,22993.6,Gallagher
Housing services,"Housing strategy, advice and enabling",Estates and Economic Development ,Third Party Payments,Private contractors,Main Contractor Costs,25/04/2024,511698,19596.65,Anchor Pipework Ltd
Central Services to the Public,Management & Support Services,HR Services,Third Party Payments,Other Local Authorities,Shared Service Contract Costs,25/04/2024,511740,20331.12,Mhr International Uk Ltd
"Highways, Roads & Transport",Parking Services,Plan Pol & Transport,Supplies & Services,Communications & Computing,Software Maintenance,18/04/2024,511877,20481.15,Imperial Civil Enforcement Solutions
Central Services to the Public,Management & Support Services,Legal & Democratic,Supplies & Services,Grants & Subscriptions,Subscriptions,18/04/2024,511334,24836.04,Thomson Reuters
Cultural & Related,Open Spaces,Community and Leisure ,Premises related Expenditure,Grounds Maintenance Costs,Non Contract Tree Works,11/04/2024,509571,29003.03,Gristwood & Toms Ltd
"Highways, Roads & Transport",Parking Services,Plan Pol & Transport,Transport Related Costs,Management Fee,Car Park charges,04/04/2024,506532,36666,Asda
Cultural & Related,Open Spaces,Community and Leisure ,Premises related Expenditure,Grounds Maintenance Costs,Non Contract Tree Works,11/04/2024,509167,30998.72,Gristwood & Toms Ltd
Central Services to the Public,Local Tax Collection,Revenues,Supplies & Services,"Printing, Stationery & General Office Expenses",External Printing,11/04/2024,511085,34491.07,Latcham Direct Ltd
Central Services to the Public,Local Tax Collection,Revenues,Supplies & Services,"Printing, Stationery & General Office Expenses",Photocopying Costs,11/04/2024,511085,921.87,Latcham Direct Ltd
Central Services to the Public,Local Tax Collection,Revenues,Supplies & Services,Miscellaneous Expenses,Other Miscellaneous Costs,11/04/2024,511084,51937,Andover Town Centre Bid Ltd
Cultural & Related,Culture & Heritage,Community and Leisure ,Third Party Payments,Private contractors,Main Contractor Costs,11/04/2024,511331,45000,Personal Data - Data Protection Act 1998
Central Services to the Public,Elections,Legal & Democratic,Supplies & Services,"Printing, Stationery & General Office Expenses",Postage Costs,18/04/2024,511248,56304.08,Financial Data Management Plc
Cultural & Related,Tourism,Planning Policy & Economic Development ,Supplies & Services,Grants & Subscriptions,Grants,25/04/2024,512243,47776,Tourism South East
Cultural & Related,Open Spaces,Community and Leisure ,Premises related Expenditure,Grounds Maintenance Costs,Non Contract Tree Works,11/04/2024,507721,51378.18,Gristwood & Toms Ltd
Planning & Development,Community Development,Community and Leisure ,Supplies & Services,Grants & Subscriptions,Grants,18/04/2024,511960,63654.82,Citizen'S Advice Test Valley
Cultural & Related,Open Spaces,Community and Leisure ,Premises related Expenditure,Repairs Alterations & Maintenance of Buildings,Estates premises costs - AMP,11/04/2024,505980,54244.53,Gristwood & Toms Ltd
Central Services to the Public,Management & Support Services,Finance,Supplies & Services,Services,Insurance ,25/04/2024,512349,69092.56,Gallagher
Central Services to the Public,Management & Support Services,Finance,Supplies & Services,Services,Insurance ,25/04/2024,512350,75053.27,Gallagher
